bitfinex/quotes_SOLUSD_20250929
["timestamp","ask_amount","ask_price","bid_price","bid_amount"]
[1759167951856,39.12826263,209.72,209.66,5.47962701]
[1759167952459,34.36,209.72,209.66,5.47962701]
[1759167952756,0.78216157,209.71,209.64,4.77008204]
[1759167952958,0.14216157,209.71,209.64,4.77008204]
[1759167953264,0.64,209.7,209.64,4.77008204]
[1759167953455,33.72,209.69,209.64,4.77008204]
[1759167953823,0.64,209.68,209.63,20.00551428]
[1759167954557,0.64,209.67,209.63,14.52522337]
[1759167954754,0.64,209.66,209.6,0.71]
[1759167954941,34.36,209.66,209.59,0.71]
[1759167955253,0.14216157,209.65,209.59,15.23008573]
[1759167955431,0.78216157,209.65,209.59,0.71]
[1759167956336,0.78216157,209.65,209.6,4.77099236]
[1759167956543,0.64,209.64,209.59,0.71]
[1759167957151,0.64,209.63,209.58,26.0]
[1759167957346,5.55209813,209.65,209.59,0.71]
[1759167957540,0.78216157,209.65,209.59,5.48120638]
[1759167959159,0.78216157,209.65,209.59,19.66148167]
[1759167959739,0.14216157,209.65,209.59,18.95148167]
[1759167959938,33.72,209.66,209.6,0.71]
[1759167960651,129.14146984,209.65,209.6,0.71]
[1759167961360,129.14146984,209.65,209.61,4.77076475]
[1759167961580,129.14146984,209.65,209.62,0.71]
[1759167961757,129.14146984,209.65,209.63,0.71]
[1759167962455,129.14146984,209.65,209.61,16.69767663]
[1759167962758,129.14146984,209.65,209.62,0.71]
[1759167962951,129.14146984,209.65,209.61,16.69767663]
[1759167962952,129.14146984,209.65,209.63,0.71]
[1759167963549,129.14146984,209.65,209.63,5.48020052]
[1759167963763,129.14146984,209.65,209.63,4.77020052]
[1759167964054,129.14146984,209.65,209.63,5.48020052]
[1759167964737,129.14146984,209.65,209.63,4.77020052]
[1759167964934,129.14146984,209.65,209.63,5.48020052]
[1759167967066,129.14146984,209.65,209.61,11.92691188]
[1759167967463,129.14146984,209.65,209.62,0.71]
[1759167967838,129.14146984,209.65,209.63,0.71]
[1759167968046,129.14146984,209.65,209.64,0.71]
[1759167968259,33.72,209.7,209.64,26.71]
[1759167968458,33.72,209.7,209.65,0.71]
[1759167969264,33.72,209.7,209.66,4.76962701]
[1759167969465,33.72,209.7,209.67,0.71]
[1759167969768,129.14146984,209.72,209.68,0.71]
[1759167970065,217.97963829,209.8,209.66,16.69369454]
[1759167970066,129.14146984,209.71,209.69,0.71]
[1759167970252,129.14146984,209.71,209.69,26.71]
[1759167970562,129.14146984,209.71,209.7,0.71]
[1759167970948,33.72,209.76,209.7,0.71]
[1759167971460,33.72,209.76,209.71,4.76848981]
[1759167971847,34.36,209.76,209.71,5.47848981]
[1759167972065,33.72,209.76,209.72,0.71]
[1759167972460,34.36,209.76,209.71,16.68971435]
[1759167972661,33.72,209.76,209.72,0.71]
[1759167973563,33.72,209.76,209.73,4.76803509]
[1759167973764,33.72,209.76,209.73,5.47803509]
[1759167974664,0.14216157,209.78,209.73,17.39812282]
[1759167974969,33.7,209.78,209.74,0.68]
[1759167975850,33.7,209.78,209.75,4.76758045]
[1759167976148,129.14146984,209.77,209.75,5.44758045]
[1759167976548,129.14146984,209.77,209.76,2.72056381]
[1759167976866,14.34411533,209.82,209.76,2.72056381]
[1759167977058,129.24146984,209.83,209.77,0.68]
[1759167978151,129.24146984,209.83,209.78,16.68414528]
[1759167978345,129.88146984,209.83,209.78,17.36414528]
[1759167979073,0.64,209.82,209.78,16.68414528]
[1759167979371,0.64,209.82,209.78,30.72408478]
[1759167979571,129.24146984,209.83,209.78,31.40408478]
[1759167979772,129.88146984,209.83,209.78,31.40408478]
[1759167980267,129.24146984,209.83,209.79,0.68]
[1759167981949,129.24146984,209.83,209.8,19.38311862]
[1759167982148,129.24146984,209.83,209.8,6.80700804]
[1759167982349,129.24146984,209.83,209.8,7.46700804]
[1759167982660,0.1,209.83,209.81,26.0]
[1759167983876,0.1,209.83,209.81,26.66]
[1759167984254,0.1,209.83,209.82,4.76598989]
[1759167985175,0.1,209.83,209.82,33.4665537]
[1759167986863,0.1,209.83,209.82,47.06214771]
[1759167988947,0.1,209.83,209.82,32.8065537]
[1759167989170,0.1,209.83,209.82,6.8065537]
[1759167989369,0.1,209.83,209.82,7.4665537]
[1759167990576,0.1,209.83,209.82,33.4665537]
[1759167995066,0.1,209.83,209.82,32.8065537]
[1759167995489,0.74,209.83,209.79,2.04056381]
[1759167995783,0.1,209.83,209.79,4.76667143]
[1759167996982,0.74,209.83,209.79,4.76667143]
[1759167997888,0.64,209.82,209.78,18.96731742]
[1759167998089,0.64,209.81,209.78,18.96731742]
[1759167998288,0.64,209.8,209.71,26.92075439]
[1759167998468,33.68,209.81,209.72,0.66]
[1759167998469,0.64,209.79,209.72,0.66]
[1759167998669,0.64,209.79,209.72,4.76826244]
[1759167998878,0.64,209.78,209.72,4.76826244]
[1759167999096,33.68,209.77,209.72,4.76826244]
[1759167999277,34.32,209.77,209.72,5.42826244]
[1759167999869,0.64,209.76,209.72,4.76826244]
[1759168000071,0.64,209.76,209.71,4.76848981]
[1759168000371,0.64,209.76,209.71,5.42848981]
[1759168000583,0.64,209.76,209.71,0.66]
[1759168000789,38.44720904,209.77,209.67,59.19874937]
[1759168000790,0.64,209.75,209.68,0.66]
[1759168000990,0.64,209.75,209.68,14.84708741]
[1759168001181,0.64,209.75,209.69,0.66]
[1759168001791,34.32,209.77,209.69,0.66]
[1759168001968,5.40716685,209.77,209.69,0.66]
[1759168002169,33.68,209.76,209.7,4.76871721]
[1759168002371,0.64,209.75,209.7,4.76871721]
[1759168002684,33.68,209.75,209.71,0.66]
[1759168002884,33.68,209.74,209.71,0.66]
[1759168003297,33.68,209.74,209.7,4.76871721]
[1759168003491,33.68,209.74,209.7,5.42871721]
[1759168003692,33.68,209.74,209.71,0.66]
[1759168003991,33.68,209.74,209.71,4.76839976]
[1759168004174,0.64,209.76,209.71,4.76839976]
[1759168004379,33.68,209.75,209.71,5.42839976]
[1759168004570,34.32,209.75,209.71,4.76839976]
[1759168004992,33.68,209.75,209.71,5.42839976]
[1759168005990,34.32,209.75,209.69,4.76894463]
[1759168006194,34.32,209.75,209.69,5.42894463]
[1759168006374,33.68,209.74,209.69,5.42894463]
[1759168006694,0.64,209.75,209.69,5.42894463]
[1759168006896,33.68,209.74,209.69,5.42894463]
[1759168007091,33.68,209.74,209.71,4.76848981]
[1759168007286,33.68,209.74,209.69,4.76872778]
[1759168007491,34.32,209.74,209.69,5.42872778]
[1759168007793,34.32,209.74,209.69,4.76872778]
[1759168008095,33.68,209.74,209.7,0.66]
[1759168008399,33.68,209.73,209.7,0.66]
[1759168009299,33.68,209.73,209.71,4.76848981]
[1759168010071,33.68,209.73,209.7,5.42870831]
[1759168010276,33.68,209.73,209.7,4.76870831]
[1759168010490,33.68,209.73,209.7,5.42870831]
[1759168010882,33.68,209.73,209.7,4.76870831]
[1759168011398,33.68,209.73,209.69,5.47894463]
[1759168012607,33.68,209.73,209.7,4.76859195]
[1759168013097,33.68,209.73,209.7,7.95653846]
[1759168013479,33.68,209.73,209.7,8.66653846]
[1759168013882,0.64,209.75,209.7,8.66653846]
[1759168014121,34.32,209.74,209.7,8.66653846]
[1759168014578,33.68,209.74,209.7,8.66653846]
[1759168015089,129.14146984,209.77,209.7,8.66653846]
[1759168015090,129.14146984,209.77,209.72,3.18794651]
[1759168015294,129.14146984,209.77,209.74,3.18794651]
[1759168015482,129.14146984,209.77,209.74,3.89794651]
[1759168015684,162.82146984,209.77,209.72,3.18794651]
[1759168015995,162.82146984,209.77,209.7,17.40038498]
[1759168015996,129.14146984,209.77,209.74,3.18794651]
[1759168016298,129.14146984,209.77,209.76,3.18794651]
[1759168016504,129.14146984,209.77,209.76,3.89794651]
[1759168016679,129.14146984,209.77,209.76,8.66529967]
[1759168017690,129.14146984,209.77,209.76,7.95529967]
[1759168018000,162.82146984,209.77,209.74,3.18794651]
[1759168018306,161.82146984,209.77,209.74,3.18794651]
[1759168018799,161.82146984,209.77,209.75,4.76758045]
[1759168019194,161.82146984,209.77,209.75,5.47758045]
[1759168019599,128.14146984,209.77,209.76,3.89794651]
[1759168020984,128.14146984,209.77,209.76,8.66529967]
[1759168021985,128.14146984,209.82,209.76,46.58368258]
[1759168022309,128.14146984,209.82,209.81,3.18794651]
[1759168023200,128.14146984,209.82,209.81,7.95416356]
[1759168024398,128.14146984,209.82,209.79,0.71]
[1759168024399,128.78146984,209.82,209.76,26.0]
[1759168024703,34.3,209.81,209.77,4.76712589]
[1759168025088,34.3,209.81,209.76,4.76735316]
[1759168025407,34.3,209.81,209.76,5.47735316]
[1759168025821,0.64,209.8,209.76,4.76735316]
[1759168026512,33.66,209.81,209.76,4.76735316]
[1759168026703,34.3,209.81,209.76,5.47735316]
[1759168028003,33.66,209.81,209.76,4.76735316]
[1759168028201,34.3,209.81,209.76,5.47735316]
[1759168028813,0.64,209.8,209.76,4.76735316]
[1759168029213,33.66,209.81,209.76,5.47735316]
[1759168029414,0.64,209.8,209.76,4.76735316]
[1759168029916,34.3,209.8,209.76,4.76735316]
[1759168030217,128.14146984,209.82,209.77,3.89794651]
[1759168030403,0.1,209.83,209.81,3.18794651]
[1759168030718,0.1,209.83,209.82,13.59559401]
[1759168030923,0.1,209.83,209.82,14.30559401]
[1759168031119,0.1,209.83,209.82,19.0715839]
[1759168038524,0.1,209.83,209.82,4.76598989]
[1759168038703,0.1,209.83,209.82,45.0515839]
[1759168042230,0.1,209.83,209.82,19.0515839]
[1759168044129,1e-08,209.83,209.82,19.0515839]
[1759168044331,0.64,209.9,209.84,39.59559401]
[1759168044532,0.64,209.9,209.84,76.42354052]
[1759168044713,0.64,209.9,209.84,77.10354052]
[1759168045322,0.64,209.9,209.84,81.86907616]
[1759168046030,128.88146984,209.91,209.84,81.86907616]
[1759168046230,128.24146984,209.91,209.84,81.86907616]
[1759168046436,0.64,209.9,209.84,81.86907616]
[1759168048237,0.1,209.96,209.92,26.0]
[1759168048411,0.74,210.02,209.92,26.0]
[1759168048412,1e-08,209.97,209.96,13.73775558]
[1759168048614,0.64,210.09,210.03,26.0]
[1759168048813,0.64,210.09,210.04,36.82794651]
[1759168049138,0.28,210.13,210.08,3.18794651]
[1759168049324,0.64,210.09,210.08,14.38751703]
[1759168049521,0.64,210.09,210.04,33.64]
[1759168049833,0.64,210.11,210.05,14.27559401]
[1759168050129,0.64,210.11,210.06,4.7605446]
[1759168050442,0.64,210.1,210.06,4.7605446]
[1759168050812,0.64,210.12,210.06,4.7605446]
[1759168051018,34.36,210.22,210.06,50.30190611]
[1759168051217,0.64,210.12,210.07,13.59559401]
[1759168051416,0.64,210.14,210.07,14.27559401]
[1759168051734,0.64,210.14,210.13,3.18794651]
[1759168053735,5.39873899,210.14,210.08,4.76007564]
[1759168054038,0.64,210.13,210.1,3.18794651]
[1759168054242,0.64,210.13,210.06,4.76053297]
[1759168054243,0.64,210.12,210.06,4.76053297]
[1759168054414,0.64,210.12,210.11,3.18794651]
[1759168055036,34.26,210.12,210.11,3.18794651]
[1759168055711,33.62,210.12,210.11,3.18794651]
[1759168055915,34.26,210.12,210.11,3.18794651]
[1759168056334,0.64,210.12,210.11,3.18794651]
[1759168056547,34.26,210.12,210.11,3.18794651]
[1759168056741,0.64,210.12,210.11,3.18794651]
[1759168056924,34.26,210.12,210.09,3.18794651]
[1759168057128,0.64,210.11,210.09,3.18794651]
[1759168057442,0.64,210.11,210.1,3.18794651]
[1759168058043,0.64,210.11,210.06,19.35256909]
[1759168058244,0.64,210.11,210.08,3.18794651]
[1759168059169,0.64,210.1,210.06,19.35256909]
[1759168059344,34.26,210.12,210.08,3.18794651]
[1759168059647,33.62,210.11,210.08,3.18794651]
[1759168059831,33.62,210.1,210.08,3.18794651]
[1759168060032,0.64,210.12,210.08,3.18794651]
[1759168060231,33.62,210.11,210.08,3.18794651]
[1759168060431,33.62,210.1,210.08,3.18794651]
[1759168061119,0.64,210.09,210.06,14.59203084]
[1759168061331,0.64,210.08,210.03,3.18794651]
[1759168061618,0.64,210.07,210.01,3.18794651]
[1759168061823,0.14216157,210.09,210.03,3.18794651]
[1759168062022,33.6,210.08,210.03,18.2088108]
[1759168062247,33.6,210.07,210.01,4.76166345]
[1759168062548,33.6,210.07,210.02,3.86794651]
[1759168062746,33.6,210.07,210.03,0.68]
[1759168062925,33.6,210.07,210.03,14.99654077]
[1759168063129,33.6,210.07,210.03,0.68]
[1759168063645,33.6,210.07,210.02,3.18794651]
[1759168063838,34.24,210.07,210.02,3.18794651]
[1759168064040,34.24,210.07,210.02,3.86794651]
[1759168064350,39.00036305,210.07,210.02,0.68]
[1759168064541,33.6,210.07,210.02,4.7614363]
[1759168064850,33.6,210.07,210.02,5.4414363]
[1759168065643,4.75987931,210.09,210.02,5.4414363]
[1759168065847,33.6,210.06,210.01,4.76164751]
[1759168066030,33.6,210.06,210.02,0.68]
[1759168066673,33.6,210.06,210.02,5.44143417]
[1759168066851,33.6,210.06,210.02,19.93751458]
[1759168067048,33.6,210.06,210.02,5.44143417]
[1759168067632,33.6,210.06,210.02,4.76143417]
[1759168067832,39.00056203,210.06,210.0,7.67889388]
[1759168068034,0.64,210.05,209.97,0.68]
[1759168068748,4.7609979,210.04,209.97,5.44257646]
[1759168068962,0.64,210.03,209.96,2.23720876]
[1759168069130,0.64,210.02,209.95,0.68]
[1759168069334,33.6,210.01,209.95,0.68]
[1759168069934,34.24,210.01,209.95,0.68]
[1759168070129,39.00178482,210.01,209.95,5.44299126]
[1759168070334,0.64,210.01,209.95,5.44299126]
[1759168070555,33.6,210.0,209.95,5.44299126]
[1759168070855,33.6,209.99,209.96,0.68]
[1759168071150,33.6,209.99,209.94,0.68]
[1759168071352,33.6,209.98,209.94,5.44326268]
[1759168071674,33.6,209.97,209.94,5.48326268]
[1759168071866,33.6,209.97,209.94,19.9090023]
[1759168072161,33.6,209.97,209.94,5.48326268]
[1759168072349,33.6,209.97,209.93,4.76348195]
[1759168072544,34.24,209.97,209.91,40.31559401]
[1759168072742,33.6,209.96,209.91,5.48373499]
[1759168072941,34.24,209.96,209.9,4.76415471]
[1759168073144,34.24,209.96,209.89,0.72]
[1759168073342,0.64,209.96,209.89,15.04179488]
[1759168073547,16.66913631,209.97,209.87,2.23720876]
[1759168073548,33.6,209.95,209.88,4.76442618]
[1759168073746,0.64,209.94,209.88,4.76442618]
[1759168073955,128.14146984,210.0,209.9,13.59559401]
[1759168074178,33.6,209.97,209.91,0.72]
[1759168074347,33.6,209.96,209.92,4.76371951]
[1759168074554,33.6,209.96,209.92,5.48371951]
[1759168075034,33.6,209.96,209.92,4.76371951]
[1759168075235,34.24,209.96,209.91,4.76394236]
[1759168075775,33.6,209.96,209.91,5.48394236]
[1759168076132,34.24,209.96,209.91,5.48394236]
[1759168076333,34.24,209.96,209.91,0.72]
[1759168076562,33.6,209.96,209.92,0.72]
[1759168076957,34.24,209.96,209.9,16.67460694]
[1759168077167,33.6,209.96,209.9,17.39460694]
[1759168078367,33.6,209.96,209.9,16.67460694]
[1759168078558,33.6,209.96,209.9,17.39460694]
[1759168078861,33.62,209.95,209.91,0.72]
[1759168079870,33.62,209.95,209.92,0.72]
[1759168080055,0.64,209.99,209.93,0.72]
[1759168080243,33.62,209.98,209.9,16.67460694]
[1759168080444,34.26,209.98,209.9,17.39460694]
[1759168080669,128.14146984,210.0,209.91,0.72]
[1759168080968,33.62,209.99,209.95,2.23720876]
[1759168081136,33.62,209.99,209.96,0.72]
[1759168081340,128.14146984,210.0,209.97,0.72]
[1759168081548,33.62,209.99,209.94,2.23720876]
[1759168081785,33.62,209.99,209.95,0.72]
[1759168082141,33.62,209.99,209.96,4.76281196]
[1759168082338,33.62,209.99,209.96,5.48281196]
[1759168082865,33.62,209.99,209.97,0.72]
[1759168083047,33.62,209.99,209.96,17.38984187]
[1759168083571,128.14146984,210.0,209.97,0.72]
[1759168084061,33.62,209.99,209.98,4.76235831]
[1759168084558,33.62,209.99,209.92,4.76371951]
[1759168084559,34.26,209.99,209.92,4.76371951]
[1759168084772,0.64,209.98,209.92,30.76371951]
[1759168084949,33.62,209.97,209.92,43.39301829]
[1759168085148,0.64,209.97,209.92,43.39301829]
[1759168085347,33.62,209.96,209.92,43.39301829]
[1759168085650,33.62,209.95,209.93,0.72]
[1759168085963,33.62,209.95,209.92,4.76371951]
[1759168086854,33.62,209.95,209.92,5.48371951]
[1759168087044,33.62,209.95,209.92,17.39301829]
[1759168088273,33.62,209.95,209.92,16.67301829]
[1759168088889,33.62,209.95,209.92,17.39301829]
[1759168089562,128.14146984,210.0,209.94,2.23720876]
[1759168089746,33.7,209.99,209.95,0.72]
[1759168090045,128.14146984,210.0,209.96,0.72]
[1759168090246,33.7,209.99,209.97,17.38904795]
[1759168090963,128.14146984,210.0,209.97,17.38904795]
[1759168091170,33.68,209.99,209.97,17.38904795]
[1759168091767,0.64,210.04,209.97,16.66904795]
[1759168091955,33.68,210.03,209.98,0.72]
[1759168092156,33.68,210.03,209.99,4.76213153]
[1759168092353,33.68,210.03,209.99,17.38746035]
[1759168092570,33.68,210.03,210.0,0.72]
[1759168092977,11.89849031,210.12,210.01,0.72]
[1759168093162,0.64,210.1,210.01,0.72]
[1759168093655,0.14216157,210.09,210.01,0.72]
[1759168093975,34.32,210.08,210.0,2.95720876]
[1759168094472,34.32,210.08,210.01,17.34587304]
[1759168094779,0.64,210.08,210.01,17.34587304]
[1759168094974,33.7,210.07,210.01,17.34587304]
[1759168095176,0.64,210.08,210.01,17.34587304]
[1759168095354,33.7,210.07,210.01,17.34587304]
[1759168095763,0.64,210.08,210.01,17.34587304]
[1759168096270,0.14216157,210.1,210.03,4.76122458]
[1759168096452,33.7,210.09,210.03,4.76122458]
[1759168096645,0.78216157,210.1,210.03,4.76122458]
[1759168096874,33.68,210.09,210.03,4.76122458]
[1759168097250,33.68,210.08,210.03,4.76122458]
[1759168097470,5.54183544,210.1,210.04,0.68]
[1759168097660,33.68,210.09,210.04,0.68]
[1759168097860,0.64,210.09,210.04,0.68]
[1759168098059,33.68,210.08,210.03,4.76122458]
[1759168098375,128.14146984,210.07,210.03,5.44122458]
[1759168098753,33.68,210.06,210.03,5.44122458]
[1759168099070,33.68,210.06,210.01,17.34587304]
[1759168099266,128.14146984,210.07,210.02,0.68]
[1759168099573,128.14146984,210.07,210.03,0.68]
[1759168099878,33.66,210.06,210.04,0.68]
[1759168101175,33.66,210.06,210.05,4.76077124]
[1759168101363,161.80146984,210.07,210.05,4.76077124]
[1759168104079,128.14146984,210.07,210.05,4.76077124]
[1759168104574,128.14146984,210.07,210.03,11.90300406]
[1759168104778,34.28,210.06,210.01,4.76167801]
[1759168104965,33.64,210.06,210.01,4.76167801]
[1759168105162,33.64,210.06,210.02,0.72]
[1759168105772,0.64,210.05,210.01,16.66587304]
[1759168105979,33.62,210.04,210.01,16.66587304]
[1759168106474,33.62,210.04,210.02,0.72]
[1759168106774,33.62,210.04,210.01,11.90419503]
[1759168106981,33.62,210.04,210.0,0.72]
[1759168107562,33.62,210.04,210.01,0.72]
[1759168108977,33.62,210.04,210.02,4.76145129]
[1759168109180,33.62,210.04,210.02,5.48145129]
[1759168110177,33.62,210.04,210.02,4.76145129]
[1759168110959,33.62,210.04,210.01,11.90404316]
[1759168111484,33.6,210.04,210.01,12.62404316]
[1759168111887,33.6,210.04,209.99,5.48213153]
[1759168112182,33.6,210.04,210.0,0.72]
[1759168112381,0.64,210.06,210.0,0.72]
[1759168112895,33.6,210.05,210.0,0.72]
[1759168113069,34.24,210.05,210.01,4.76167801]
[1759168114292,33.6,210.04,210.01,4.76167801]
[1759168114460,128.14146984,210.07,210.01,4.76167801]
[1759168114664,128.14146984,210.07,210.02,0.72]
[1759168114907,0.64,210.06,210.01,4.76167801]
[1759168115070,0.64,210.05,210.01,4.76167801]
[1759168115383,33.6,210.04,210.01,4.76167801]
[1759168115872,128.14146984,210.07,210.01,4.76167801]
[1759168116074,0.64,210.04,210.01,4.76167801]
[1759168116275,34.24,210.03,210.01,4.76167801]
[1759168116570,33.6,210.03,210.01,4.76167801]
[1759168117283,33.6,210.03,209.99,4.76213153]
[1759168117493,33.6,210.03,209.99,5.48213153]
[1759168121995,33.6,210.02,209.99,5.48213153]
[1759168125198,33.6,210.02,209.96,30.76278244]
[1759168125369,0.64,210.04,209.98,0.72]
[1759168125569,33.6,210.03,209.98,0.72]
[1759168125792,33.6,210.03,209.99,0.72]
[1759168125978,33.6,210.02,209.99,0.72]
[1759168127282,33.6,210.02,210.0,4.76190476]
[1759168127893,128.14146984,210.07,210.01,0.72]
[1759168128079,161.74146984,210.07,210.01,0.72]
[1759168129000,161.74146984,210.07,210.02,4.76145129]
[1759168129179,161.74146984,210.07,210.02,5.48145129]
[1759168129575,128.78146984,210.07,210.02,5.48145129]
[1759168129895,33.6,210.06,210.02,17.38507951]
[1759168130199,33.6,210.06,210.02,16.66507951]
[1759168130377,33.6,210.06,210.03,0.72]
[1759168130578,33.6,210.06,210.02,16.66507951]
[1759168130778,33.6,210.06,210.02,17.38507951]
[1759168131613,33.6,210.05,210.02,17.38507951]
[1759168132081,128.78146984,210.07,210.02,4.76145129]
[1759168132279,128.14146984,210.07,210.02,16.66507951]
[1759168132591,128.14146984,210.07,210.03,0.69]
[1759168132789,128.14146984,210.13,210.04,13.59559401]
[1759168133098,128.14146984,210.13,210.06,13.59559401]
[1759168133301,161.74146984,210.13,210.08,3.49637157]
[1759168133600,161.74146984,210.13,210.09,0.69]
[1759168133997,0.64,210.12,210.08,3.49637157]
[1759168134303,0.64,210.11,210.06,4.7603482]
[1759168134504,0.64,210.11,210.06,5.4503482]
[1759168134685,0.64,210.11,210.06,17.35170971]
[1759168134878,128.14146984,210.13,210.06,16.66170971]
[1759168135080,33.6,210.12,210.07,0.69]
[1759168135790,33.6,210.12,210.08,0.69]
[1759168136176,162.38146984,210.13,210.09,4.75986481]
[1759168136687,0.64,210.12,210.07,4.76031798]
[1759168136884,0.64,210.11,210.07,4.76031798]
[1759168137311,0.64,210.1,210.06,4.76049778]
[1759168137611,0.64,210.09,210.06,4.76049778]
[1759168137815,0.64,210.08,210.05,4.76073115]
[1759168138102,0.64,210.07,210.03,4.76099953]
[1759168138985,38.9999445,210.09,210.03,4.76099953]
[1759168139412,0.64,210.08,210.03,4.76099953]
[1759168139603,0.64,210.08,210.03,5.45099953]
[1759168139797,0.64,210.07,210.02,4.76140247]
[1759168140107,33.6,210.08,210.03,0.69]
[1759168140293,0.64,210.07,210.04,4.7609979]
[1759168141398,8.11180818,210.11,210.02,16.66507951]
[1759168141597,0.64,210.09,210.03,0.69]
[1759168142211,3.21001854,210.11,210.04,13.59559401]
[1759168142419,0.64,210.15,210.06,17.09196558]
[1759168142590,3.20942929,210.16,210.08,13.59559401]
[1759168142792,3.20942929,210.16,210.09,3.49637157]
[1759168143013,36.80942929,210.16,210.1,0.69]
[1759168143214,33.6,210.16,210.1,0.69]
[1759168143511,3.20942929,210.19,210.11,4.75941173]
[1759168143512,3.20942929,210.18,210.11,4.75941173]
[1759168143732,161.74146984,210.17,210.12,0.69]
[1759168144017,3.20942929,210.16,210.12,14.5850037]
[1759168144200,3.20942929,210.16,210.11,4.75941173]
[1759168144395,3.20942929,210.16,210.11,5.44941173]
[1759168144918,3.84942929,210.16,210.11,5.44941173]
[1759168145410,3.20942929,210.16,210.12,0.69]
[1759168145794,3.84942929,210.16,210.11,4.75941173]
[1759168146000,3.20942929,210.16,210.11,4.75941173]
[1759168146195,3.84942929,210.16,210.11,4.75941173]
[1759168146411,3.20942929,210.16,210.11,4.75941173]
[1759168146610,36.80942929,210.16,210.12,0.69]
[1759168146806,33.6,210.16,210.12,0.69]
[1759168147518,128.14146984,210.17,210.12,0.69]
[1759168147808,162.38146984,210.17,210.13,4.75895873]
[1759168148019,0.64,210.16,210.13,4.75895873]
[1759168148191,33.6,210.16,210.13,4.75895873]
[1759168149528,161.74146984,210.17,210.13,4.75895873]
[1759168149820,162.38146984,210.17,210.13,4.75895873]
[1759168151197,128.78146984,210.17,210.13,4.75895873]
[1759168151410,33.6,210.16,210.12,13.9607796]
[1759168151590,0.64,210.15,210.1,4.75947682]
[1759168151794,0.64,210.14,210.09,4.75982623]
[1759168152009,0.64,210.13,210.09,18.8319733]
[1759168152290,0.64,210.15,210.09,31.42163534]
[1759168152519,128.14146984,210.17,210.12,26.0]
[1759168152816,128.78146984,210.17,210.12,0.69]
[1759168153403,128.78146984,210.17,210.13,4.75895873]
[1759168154127,128.14146984,210.17,210.13,5.44895873]
[1759168154708,128.78146984,210.17,210.11,12.58841323]
[1759168154911,128.14146984,210.17,210.12,0.69]
[1759168155329,128.14146984,210.17,210.13,0.69]
[1759168155635,128.78146984,210.17,210.11,12.58841323]
[1759168155833,162.36146984,210.17,210.11,12.58841323]
[1759168156041,0.64,210.16,210.11,11.89841323]
[1759168156213,0.64,210.16,210.11,12.58841323]
[1759168156529,161.72146984,210.17,210.12,0.69]
[1759168156829,162.36146984,210.17,210.13,5.41895873]
[1759168157032,162.36146984,210.17,210.13,4.75895873]
[1759168157816,128.14146984,210.17,210.14,0.66]
[1759168160232,128.14146984,210.17,210.13,11.89739684]
[1759168160432,128.14146984,210.17,210.15,0.66]
[1759168160831,128.14146984,210.17,210.13,11.89739684]
[1759168161018,128.14146984,210.17,210.15,0.66]
[1759168161738,128.14146984,210.17,210.13,11.89739684]
[1759168161942,128.14146984,210.17,210.13,12.59739684]
[1759168162127,128.14146984,210.17,210.14,0.7]
[1759168162437,128.14146984,210.17,210.15,4.75850582]
[1759168163637,0.64,210.16,210.12,4.75915526]
[1759168163827,128.14146984,210.17,210.12,5.45915526]
[1759168164028,128.78146984,210.17,210.12,5.45915526]
[1759168164225,128.14146984,210.17,210.12,5.45915526]
[1759168164426,128.78146984,210.17,210.12,5.45915526]
[1759168164921,128.14146984,210.17,210.12,16.65711832]
[1759168165239,128.14146984,210.17,210.13,0.7]
[1759168165543,128.14146984,210.17,210.12,16.65711832]
[1759168165839,128.14146984,210.17,210.13,0.7]